[Event "Late-Titled-Tuesday-Blitz-July-09-2024"]
[Site "Chess.com"]
[Date "2024.07.09"]
[Round "6"]
[White "MusicCityMaster"]
[Black "BardArtem"]
[Result "1-0"]
[WhiteElo "2514"]
[BlackElo "2782"]
[TimeControl "180+1"]
[EndTime "15:05:09 PDT"]
[Termination "MusicCityMaster won by checkmate"]

1. e4 {[%clk 0:03:00.9]} 1... e5 {[%clk 0:02:59.3]} 2. Nc3 {[%clk 0:02:58.8]}
2... Nc6 {[%clk 0:02:59.4]} 3. f4 {[%clk 0:02:59.5]} 3... exf4 {[%clk
0:02:58.9]} 4. Nf3 {[%clk 0:02:59]} 4... g5 {[%clk 0:02:55.3]} 5. h4 {[%clk
0:02:53.1]} 5... g4 {[%clk 0:02:54.6]} 6. Ng5 {[%clk 0:02:48.6]} 6... f3 {[%clk
0:02:39.3]} 7. Bc4 {[%clk 0:02:34.6]} 7... Ne5 {[%clk 0:02:33.5]} 8. Bb3 {[%clk
0:02:09.8]} 8... h6 {[%clk 0:02:19.2]} 9. d4 {[%clk 0:01:59.8]} 9... hxg5 {[%clk
0:02:15.4]} 10. dxe5 {[%clk 0:01:56.8]} 10... Rxh4 {[%clk 0:01:59.6]} 11. Rf1
{[%clk 0:01:43.9]} 11... Qe7 {[%clk 0:01:38.5]} 12. gxf3 {[%clk 0:01:31.3]}
12... Qxe5 {[%clk 0:01:36.7]} 13. f4 {[%clk 0:01:29.5]} 13... Qc5 {[%clk
0:01:28.2]} 14. fxg5 {[%clk 0:01:21.5]} 14... Bd6 {[%clk 0:01:28]} 15. Bxf7+
{[%clk 0:01:04.1]} 15... Kd8 {[%clk 0:01:27.6]} 16. Qd3 {[%clk 0:00:55.8]} 16...
Rh3 {[%clk 0:01:04.4]} 17. Qd5 {[%clk 0:00:35.9]} 17... Ne7 {[%clk 0:00:36.6]}
18. Qxc5 {[%clk 0:00:31.2]} 18... Bxc5 {[%clk 0:00:37.5]} 19. g6 {[%clk
0:00:30.3]} 19... g3 {[%clk 0:00:35.7]} 20. Bg5 {[%clk 0:00:23.5]} 20... g2
{[%clk 0:00:32.9]} 21. g7 {[%clk 0:00:23.2]} 21... gxf1=Q+ {[%clk 0:00:25.5]}
22. Kxf1 {[%clk 0:00:24.1]} 22... c6 {[%clk 0:00:25.8]} 23. g8=Q+ {[%clk
0:00:23]} 23... Kc7 {[%clk 0:00:26.5]} 24. Bf4+ {[%clk 0:00:20.6]} 24... d6
{[%clk 0:00:24.5]} 25. Qg5 {[%clk 0:00:17.5]} 25... Rh1+ {[%clk 0:00:19.7]} 26.
Ke2 {[%clk 0:00:17.9]} 26... Bg4+ {[%clk 0:00:15]} 27. Kd2 {[%clk 0:00:13.4]}
27... Rxa1 {[%clk 0:00:11.8]} 28. Qxe7+ {[%clk 0:00:13]} 28... Bd7 {[%clk
0:00:07.3]} 29. Be6 {[%clk 0:00:11.5]} 29... Rd8 {[%clk 0:00:07.9]} 30. Bg5
{[%clk 0:00:11.4]} 30... Rh8 {[%clk 0:00:02.6]} 31. Qxd7+ {[%clk 0:00:11.3]}
31... Kb6 {[%clk 0:00:03.5]} 32. Na4+ {[%clk 0:00:11.2]} 32... Ka5 {[%clk
0:00:03.9]} 33. Qxb7 {[%clk 0:00:08.3]} 33... Bb6 {[%clk 0:00:01.5]} 34. Nxb6
{[%clk 0:00:07.6]} 34... axb6 {[%clk 0:00:02.4]} 35. Qa7+ {[%clk 0:00:07.6]}
35... Kb5 {[%clk 0:00:03]} 36. c4+ {[%clk 0:00:07.8]} 36... Kc5 {[%clk
0:00:01.1]} 37. Be3+ {[%clk 0:00:08.4]} 37... Kb4 {[%clk 0:00:01.7]} 38. Qa3#
{[%clk 0:00:08.7]} 1-0

[Event "Late-Titled-Tuesday-Blitz-July-09-2024"]
[Site "Chess.com"]
[Date "2024.07.09"]
[Round "6"]
[White "Defenstrator"]
[Black "Boorchess"]
[Result "1-0"]
[WhiteElo "2383"]
[BlackElo "2515"]
[TimeControl "180+1"]
[EndTime "15:05:14 PDT"]
[Termination "Defenstrator won on time"]

1. e4 {[%clk 0:02:59.7]} 1... c5 {[%clk 0:03:00.1]} 2. Nf3 {[%clk 0:02:59.8]}
2... e6 {[%clk 0:03:00.3]} 3. d4 {[%clk 0:03:00.1]} 3... cxd4 {[%clk 0:03:00.5]}
4. Nxd4 {[%clk 0:03:01]} 4... a6 {[%clk 0:03:00.8]} 5. Nc3 {[%clk 0:03:00.1]}
5... b5 {[%clk 0:03:00.5]} 6. g4 {[%clk 0:02:56.7]} 6... Bb7 {[%clk 0:02:59.8]}
7. Bg2 {[%clk 0:02:56.6]} 7... d6 {[%clk 0:02:52.1]} 8. O-O {[%clk 0:02:54.5]}
8... Nd7 {[%clk 0:02:51.9]} 9. Re1 {[%clk 0:02:54.7]} 9... Be7 {[%clk
0:02:51.8]} 10. a4 {[%clk 0:02:49.8]} 10... b4 {[%clk 0:02:50.2]} 11. Na2 {[%clk
0:02:34]} 11... Qb6 {[%clk 0:02:24.1]} 12. c3 {[%clk 0:02:19.1]} 12... bxc3
{[%clk 0:02:22.3]} 13. Nxc3 {[%clk 0:02:19.4]} 13... Ne5 {[%clk 0:02:08.8]} 14.
b3 {[%clk 0:02:07.4]} 14... Rc8 {[%clk 0:02:06.7]} 15. Bb2 {[%clk 0:01:51.1]}
15... Nf6 {[%clk 0:02:03.8]} 16. g5 {[%clk 0:01:49.5]} 16... Nfd7 {[%clk
0:02:02.7]} 17. f4 {[%clk 0:01:43.6]} 17... Nc6 {[%clk 0:01:59.4]} 18. Nd5
{[%clk 0:01:41.2]} 18... exd5 {[%clk 0:01:18.6]} 19. exd5 {[%clk 0:01:38.7]}
19... Nce5 {[%clk 0:01:13.7]} 20. fxe5 {[%clk 0:01:26.7]} 20... dxe5 {[%clk
0:01:13.9]} 21. Kh1 {[%clk 0:01:21.8]} 21... O-O {[%clk 0:01:13]} 22. Nf5 {[%clk
0:01:16]} 22... Bxg5 {[%clk 0:01:00.1]} 23. Qg4 {[%clk 0:01:14.8]} 23... Bf6
{[%clk 0:00:37.6]} 24. Be4 {[%clk 0:00:51.5]} 24... Rc2 {[%clk 0:00:29.4]} 25.
Bxc2 {[%clk 0:00:49.9]} 25... Bxd5+ {[%clk 0:00:28.1]} 26. Be4 {[%clk
0:00:48.2]} 26... Qxb3 {[%clk 0:00:22.6]} 27. Nh6+ {[%clk 0:00:38]} 27... Kh8
{[%clk 0:00:22.2]} 28. Qxd7 {[%clk 0:00:36.6]} 28... Bxe4+ {[%clk 0:00:20.2]}
29. Rxe4 {[%clk 0:00:36.6]} 29... Qxb2 {[%clk 0:00:19]} 30. Rae1 {[%clk
0:00:34.8]} 30... gxh6 {[%clk 0:00:18.1]} 31. Qf5 {[%clk 0:00:31.8]} 31... Bg7
{[%clk 0:00:15.2]} 32. Rg1 {[%clk 0:00:29.9]} 32... Qb7 {[%clk 0:00:12.5]} 33.
h3 {[%clk 0:00:19.2]} 33... Rg8 {[%clk 0:00:10.7]} 34. Kh2 {[%clk 0:00:19.1]}
34... f6 {[%clk 0:00:10.3]} 35. Reg4 {[%clk 0:00:15.9]} 35... Qc7 {[%clk
0:00:10.6]} 36. Qxf6 {[%clk 0:00:12.4]} 36... e4+ {[%clk 0:00:10.1]} 37. Kh1
{[%clk 0:00:12.1]} 1-0

[Event "Late-Titled-Tuesday-Blitz-July-09-2024"]
[Site "Chess.com"]
[Date "2024.07.09"]
[Round "6"]
[White "m_ezat"]
[Black "KorolDimitriy75"]
[Result "1-0"]
[WhiteElo "2639"]
[BlackElo "2399"]
[TimeControl "180+1"]
[EndTime "15:05:16 PDT"]
[Termination "m_ezat won on time"]

1. d4 {[%clk 0:03:00.9]} 1... Nf6 {[%clk 0:02:59.5]} 2. c4 {[%clk 0:03:01.3]}
2... c5 {[%clk 0:02:59.8]} 3. d5 {[%clk 0:03:00.1]} 3... b5 {[%clk 0:03:00]} 4.
cxb5 {[%clk 0:03:00.6]} 4... a6 {[%clk 0:03:00.4]} 5. Nc3 {[%clk 0:03:00.5]}
5... axb5 {[%clk 0:03:00.3]} 6. e4 {[%clk 0:03:00.6]} 6... b4 {[%clk 0:03:00.5]}
7. Nb5 {[%clk 0:03:00.7]} 7... d6 {[%clk 0:03:00.6]} 8. Bf4 {[%clk 0:02:58.6]}
8... g6 {[%clk 0:02:59.1]} 9. e5 {[%clk 0:02:58.3]} 9... Nh5 {[%clk 0:02:59.2]}
10. exd6 {[%clk 0:02:57.9]} 10... exd6 {[%clk 0:02:59]} 11. Qe2+ {[%clk
0:02:57.8]} 11... Kd7 {[%clk 0:02:59.1]} 12. Be3 {[%clk 0:02:57.4]} 12... Bg7
{[%clk 0:02:39.9]} 13. Nf3 {[%clk 0:02:53.9]} 13... Re8 {[%clk 0:02:20.9]} 14.
g3 {[%clk 0:02:49.8]} 14... Ra5 {[%clk 0:01:19.7]} 15. Nd2 {[%clk 0:02:33.5]}
15... Ba6 {[%clk 0:01:14.6]} 16. a4 {[%clk 0:01:11.9]} 16... bxa3 {[%clk
0:01:11.6]} 17. Rxa3 {[%clk 0:01:10.5]} 17... Bxb5 {[%clk 0:01:00.8]} 18. Qg4+
{[%clk 0:01:07.9]} 18... f5 {[%clk 0:01:00.3]} 19. Bxb5+ {[%clk 0:01:05.3]}
19... Rxb5 {[%clk 0:01:01.2]} 20. Qa4 {[%clk 0:01:03.4]} 20... Qb6 {[%clk
0:00:46.2]} 21. Rb3 {[%clk 0:01:00.8]} 21... Qa6 {[%clk 0:00:20.2]} 22. Qxb5+
{[%clk 0:00:55.1]} 22... Qxb5 {[%clk 0:00:18.8]} 23. Rxb5 {[%clk 0:00:55.3]}
23... Kc7 {[%clk 0:00:16.7]} 24. O-O {[%clk 0:00:54]} 24... Nd7 {[%clk
0:00:10.6]} 25. Ra1 {[%clk 0:00:53]} 25... Rc8 {[%clk 0:00:06.1]} 26. Ra7+
{[%clk 0:00:51.5]} 26... Kd8 {[%clk 0:00:06.7]} 27. Rbb7 {[%clk 0:00:51.7]}
27... Nhf6 {[%clk 0:00:06.8]} 28. Bg5 {[%clk 0:00:50.7]} 28... Bh8 {[%clk
0:00:06.6]} 29. Rxd7+ {[%clk 0:00:50]} 29... Ke8 {[%clk 0:00:05.6]} 30. Re7+
{[%clk 0:00:49.5]} 30... Kf8 {[%clk 0:00:03.9]} 31. Bxf6 {[%clk 0:00:49.4]}
31... Bxf6 {[%clk 0:00:02.4]} 32. Rf7+ {[%clk 0:00:49.4]} 32... Kg8 {[%clk
0:00:02.2]} 33. Rxf6 {[%clk 0:00:49.3]} 33... Rf8 {[%clk 0:00:01.1]} 34. Rxf8+
{[%clk 0:00:39.8]} 34... Kxf8 {[%clk 0:00:02]} 35. Nc4 {[%clk 0:00:39.3]} 35...
Ke8 {[%clk 0:00:01.1]} 36. Nxd6+ {[%clk 0:00:38.6]} 36... Kd8 {[%clk 0:00:01.5]}
37. Rxh7 {[%clk 0:00:37.3]} 37... f4 {[%clk 0:00:01]} 38. gxf4 {[%clk
0:00:35.1]} 38... g5 {[%clk 0:00:01.4]} 39. f5 {[%clk 0:00:35.2]} 39... c4
{[%clk 0:00:01.4]} 40. f6 {[%clk 0:00:34.8]} 40... c3 {[%clk 0:00:01.6]} 41. f7
{[%clk 0:00:33.7]} 41... Ke7 {[%clk 0:00:01.6]} 42. f8=Q+ {[%clk 0:00:31]} 42...
Kxf8 {[%clk 0:00:01.4]} 43. bxc3 {[%clk 0:00:30.9]} 43... Kg8 {[%clk 0:00:01.2]}
44. Re7 {[%clk 0:00:26.6]} 44... Kf8 {[%clk 0:00:01]} 45. Rd7 {[%clk 0:00:26.6]}
1-0

[Event "Late-Titled-Tuesday-Blitz-July-09-2024"]
[Site "Chess.com"]
[Date "2024.07.09"]
[Round "6"]
[White "hakanazeri2"]
[Black "Kyrko_Gamba"]
[Result "1-0"]
[WhiteElo "2686"]
[BlackElo "2528"]
[TimeControl "180+1"]
[EndTime "15:05:17 PDT"]
[Termination "hakanazeri2 won by resignation"]

1. Nf3 {[%clk 0:02:58.7]} 1... d5 {[%clk 0:02:56.8]} 2. g3 {[%clk 0:02:59.6]}
2... Nf6 {[%clk 0:02:56.9]} 3. Bg2 {[%clk 0:03:00.1]} 3... e6 {[%clk 0:02:57.8]}
4. O-O {[%clk 0:03:00.8]} 4... Be7 {[%clk 0:02:58.4]} 5. c4 {[%clk 0:03:01.5]}
5... O-O {[%clk 0:02:58.6]} 6. b3 {[%clk 0:02:58.7]} 6... d4 {[%clk 0:02:58]} 7.
e3 {[%clk 0:02:56.1]} 7... c5 {[%clk 0:02:58.5]} 8. d3 {[%clk 0:02:55.3]} 8...
Nc6 {[%clk 0:02:58.1]} 9. exd4 {[%clk 0:02:54]} 9... cxd4 {[%clk 0:02:58.3]} 10.
a3 {[%clk 0:02:53.6]} 10... a5 {[%clk 0:02:57.3]} 11. Re1 {[%clk 0:02:54.1]}
11... Re8 {[%clk 0:02:57.2]} 12. Ne5 {[%clk 0:02:53.3]} 12... Nxe5 {[%clk
0:02:57.2]} 13. Rxe5 {[%clk 0:02:54.2]} 13... Nd7 {[%clk 0:02:57.9]} 14. Re1
{[%clk 0:02:40.4]} 14... e5 {[%clk 0:02:56.8]} 15. Nd2 {[%clk 0:02:35.4]} 15...
Nc5 {[%clk 0:02:45]} 16. Ne4 {[%clk 0:02:29.2]} 16... Ne6 {[%clk 0:01:59.1]} 17.
f4 {[%clk 0:02:21.1]} 17... exf4 {[%clk 0:01:58.2]} 18. Bxf4 {[%clk 0:02:22]}
18... Nxf4 {[%clk 0:01:57.7]} 19. gxf4 {[%clk 0:02:22.9]} 19... Bf5 {[%clk
0:01:55.5]} 20. Ng3 {[%clk 0:02:18.9]} 20... Qd7 {[%clk 0:01:43.9]} 21. Bxb7
{[%clk 0:01:43.7]} 21... Qxb7 {[%clk 0:01:03.8]} 22. Nxf5 {[%clk 0:01:42.4]}
22... Bf8 {[%clk 0:01:04.2]} 23. Ng3 {[%clk 0:00:31.7]} 23... Rxe1+ {[%clk
0:00:56.5]} 24. Qxe1 {[%clk 0:00:32.6]} 24... Qxb3 {[%clk 0:00:56]} 25. Qe4
{[%clk 0:00:29.4]} 25... Rb8 {[%clk 0:00:41.5]} 26. Re1 {[%clk 0:00:24.9]} 26...
Qc2 {[%clk 0:00:20.2]} 27. Re2 {[%clk 0:00:21.2]} 27... Qc1+ {[%clk 0:00:19.8]}
28. Re1 {[%clk 0:00:20.6]} 28... Qd2 {[%clk 0:00:18.4]} 29. Re2 {[%clk 0:00:20]}
29... Qd1+ {[%clk 0:00:18.3]} 30. Kg2 {[%clk 0:00:15.6]} 30... Rb1 {[%clk
0:00:17.4]} 31. Kh3 {[%clk 0:00:15.3]} 31... g6 {[%clk 0:00:16.6]} 32. f5 {[%clk
0:00:13.8]} 32... Qa4 {[%clk 0:00:11.5]} 33. fxg6 {[%clk 0:00:13.1]} 33... hxg6
{[%clk 0:00:11.4]} 34. Qd5 {[%clk 0:00:13]} 34... Rb8 {[%clk 0:00:09.9]} 35. Rf2
{[%clk 0:00:12.5]} 35... Qe8 {[%clk 0:00:07.8]} 36. Ne4 {[%clk 0:00:12.8]} 36...
Bg7 {[%clk 0:00:05.4]} 37. Kg2 {[%clk 0:00:09.4]} 37... Kf8 {[%clk 0:00:02.1]}
38. Nd6 {[%clk 0:00:09.1]} 38... Qe6 {[%clk 0:00:02.3]} 39. Qxe6 {[%clk
0:00:08.6]} 1-0

[Event "Late-Titled-Tuesday-Blitz-July-09-2024"]
[Site "Chess.com"]
[Date "2024.07.09"]
[Round "6"]
[White "JAN2404"]
[Black "NajdorfPlayerc5"]
[Result "1-0"]
[WhiteElo "2109"]
[BlackElo "2402"]
[TimeControl "180+1"]
[EndTime "15:05:17 PDT"]
[Termination "JAN2404 won on time"]

1. e4 {[%clk 0:02:53.8]} 1... c6 {[%clk 0:03:00]} 2. d4 {[%clk 0:02:53.6]} 2...
d5 {[%clk 0:03:00.4]} 3. e5 {[%clk 0:02:53.8]} 3... Bf5 {[%clk 0:02:59.6]} 4.
Nf3 {[%clk 0:02:54.3]} 4... e6 {[%clk 0:02:55]} 5. Be2 {[%clk 0:02:54.6]} 5...
c5 {[%clk 0:02:50.7]} 6. c3 {[%clk 0:02:53.8]} 6... Nc6 {[%clk 0:02:50.3]} 7.
O-O {[%clk 0:02:52.1]} 7... Be7 {[%clk 0:02:24]} 8. Be3 {[%clk 0:02:50.4]} 8...
g5 {[%clk 0:02:19.8]} 9. dxc5 {[%clk 0:02:44.5]} 9... g4 {[%clk 0:02:19.6]} 10.
Nd4 {[%clk 0:02:44.7]} 10... Nxd4 {[%clk 0:02:03.6]} 11. Bxd4 {[%clk 0:02:40.3]}
11... h5 {[%clk 0:01:58.7]} 12. Qa4+ {[%clk 0:02:30.6]} 12... Kf8 {[%clk
0:01:57.3]} 13. c4 {[%clk 0:02:19]} 13... dxc4 {[%clk 0:01:33]} 14. Qxc4 {[%clk
0:02:11.4]} 14... Nh6 {[%clk 0:01:32.7]} 15. Nc3 {[%clk 0:02:05.4]} 15... Kg7
{[%clk 0:01:32.5]} 16. Nb5 {[%clk 0:02:02.5]} 16... Be4 {[%clk 0:01:22]} 17. Nd6
{[%clk 0:01:55.8]} 17... Nf5 {[%clk 0:01:07.5]} 18. Rad1 {[%clk 0:01:42.3]}
18... Nxd4 {[%clk 0:00:24.3]} 19. Qxd4 {[%clk 0:01:42]} 19... Bd5 {[%clk
0:00:21.7]} 20. f4 {[%clk 0:01:34.2]} 20... f5 {[%clk 0:00:02.6]} 21. Nxf5+
{[%clk 0:01:27.1]} 21... exf5 {[%clk 0:00:02.5]} 22. Qxd5 {[%clk 0:01:27.6]}
22... Qc7 {[%clk 0:00:01.6]} 23. Qd7 {[%clk 0:01:15.9]} 23... Qxc5+ {[%clk
0:00:01]} 24. Kh1 {[%clk 0:01:16.4]} 24... Rhd8 {[%clk 0:00:01.3]} 25. Qxf5
{[%clk 0:01:14.5]} 25... Rxd1 {[%clk 0:00:01.4]} 26. Rxd1 {[%clk 0:01:14.1]}
26... Rd8 {[%clk 0:00:02]} 27. Rxd8 {[%clk 0:01:04.4]} 27... Bxd8 {[%clk
0:00:02.9]} 28. Qd7+ {[%clk 0:01:04]} 28... Be7 {[%clk 0:00:02.1]} 29. g3 {[%clk
0:00:35.2]} 29... Kf8 {[%clk 0:00:02.2]} 30. f5 {[%clk 0:00:26.7]} 30... Qf2
{[%clk 0:00:01.6]} 31. Qc8+ {[%clk 0:00:20.4]} 31... Kg7 {[%clk 0:00:01.5]} 32.
f6+ {[%clk 0:00:18.2]} 32... Kh6 {[%clk 0:00:01]} 33. Qh8+ {[%clk 0:00:17]}
33... Kg5 {[%clk 0:00:01.4]} 34. Qg7+ {[%clk 0:00:15.9]} 34... Kf5 {[%clk
0:00:01.7]} 35. Qh7+ {[%clk 0:00:13.8]} 35... Kxe5 {[%clk 0:00:01.5]} 36. Qxe7+
{[%clk 0:00:13.6]} 36... Kd4 {[%clk 0:00:01.4]} 37. f7 {[%clk 0:00:09.2]} 37...
h4 {[%clk 0:00:01.5]} 38. Qd6+ {[%clk 0:00:06.6]} 1-0

[Event "Late-Titled-Tuesday-Blitz-July-09-2024"]
[Site "Chess.com"]
[Date "2024.07.09"]
[Round "6"]
[White "praveenb2002"]
[Black "FabianoCaruana"]
[Result "0-1"]
[WhiteElo "2845"]
[BlackElo "3174"]
[TimeControl "180+1"]
[EndTime "15:05:22 PDT"]
[Termination "FabianoCaruana won by checkmate"]

1. e4 {[%clk 0:03:00.9]} 1... c5 {[%clk 0:03:00.5]} 2. Nf3 {[%clk 0:02:59.2]}
2... Nc6 {[%clk 0:03:01]} 3. d4 {[%clk 0:02:57.3]} 3... cxd4 {[%clk 0:03:01.9]}
4. Nxd4 {[%clk 0:02:57.4]} 4... Nf6 {[%clk 0:03:02.5]} 5. Nc3 {[%clk 0:02:54.3]}
5... e5 {[%clk 0:03:03.1]} 6. Ndb5 {[%clk 0:02:52.7]} 6... d6 {[%clk 0:03:03.6]}
7. Nd5 {[%clk 0:02:52.4]} 7... Nxd5 {[%clk 0:03:02.9]} 8. exd5 {[%clk 0:02:53]}
8... Nb8 {[%clk 0:03:03.5]} 9. a4 {[%clk 0:02:48.9]} 9... Be7 {[%clk 0:03:03.5]}
10. Bd2 {[%clk 0:02:43.7]} 10... O-O {[%clk 0:03:03.8]} 11. Be2 {[%clk
0:02:37.4]} 11... Bf5 {[%clk 0:03:04.1]} 12. O-O {[%clk 0:02:34.9]} 12... Nd7
{[%clk 0:03:04]} 13. a5 {[%clk 0:02:32.8]} 13... a6 {[%clk 0:03:04.2]} 14. Na3
{[%clk 0:02:32.9]} 14... Bg6 {[%clk 0:03:02.9]} 15. Nc4 {[%clk 0:02:29.7]} 15...
Rc8 {[%clk 0:03:02.8]} 16. Bb4 {[%clk 0:02:22.6]} 16... Nf6 {[%clk 0:02:59.7]}
17. Ra3 {[%clk 0:02:16]} 17... Ne4 {[%clk 0:02:52.6]} 18. f3 {[%clk 0:02:08.2]}
18... Nc5 {[%clk 0:02:48.4]} 19. Nb6 {[%clk 0:02:01.9]} 19... Rc7 {[%clk
0:02:48.6]} 20. Rc3 {[%clk 0:01:53.6]} 20... Nd7 {[%clk 0:02:47.5]} 21. Nc4
{[%clk 0:01:49.2]} 21... Qb8 {[%clk 0:02:32.4]} 22. Qa1 {[%clk 0:01:33.4]} 22...
b5 {[%clk 0:02:25.1]} 23. axb6 {[%clk 0:01:31.1]} 23... Nxb6 {[%clk 0:02:25.2]}
24. Nxb6 {[%clk 0:01:29.3]} 24... Qxb6+ {[%clk 0:02:26.1]} 25. Kh1 {[%clk
0:01:27.8]} 25... Rxc3 {[%clk 0:02:19.1]} 26. Bxc3 {[%clk 0:01:28]} 26... Ra8
{[%clk 0:02:14]} 27. Qa4 {[%clk 0:01:27.5]} 27... h5 {[%clk 0:01:49.8]} 28. Qc6
{[%clk 0:01:10.6]} 28... Qa7 {[%clk 0:01:35.8]} 29. Ra1 {[%clk 0:01:05.8]} 29...
Rb8 {[%clk 0:01:36]} 30. Qxa6 {[%clk 0:00:57.9]} 30... Qxa6 {[%clk 0:01:08.9]}
31. Rxa6 {[%clk 0:00:56.5]} 31... Bxc2 {[%clk 0:01:09.5]} 32. Kg1 {[%clk
0:00:50.6]} 32... Bb3 {[%clk 0:01:06.4]} 33. Ra7 {[%clk 0:00:44.2]} 33... Bd8
{[%clk 0:01:00.2]} 34. Rd7 {[%clk 0:00:32.1]} 34... Bb6+ {[%clk 0:00:59.7]} 35.
Kf1 {[%clk 0:00:32.6]} 35... Bc5 {[%clk 0:00:59.5]} 36. f4 {[%clk 0:00:33.1]}
36... exf4 {[%clk 0:00:55.6]} 37. Bxh5 {[%clk 0:00:32.3]} 37... Bxd5 {[%clk
0:00:55.9]} 38. Bf3 {[%clk 0:00:31.2]} 38... Be6 {[%clk 0:00:38]} 39. Rc7 {[%clk
0:00:29.9]} 39... Be3 {[%clk 0:00:31.3]} 40. Ke2 {[%clk 0:00:23.5]} 40... d5
{[%clk 0:00:28.7]} 41. Be5 {[%clk 0:00:20.3]} 41... d4 {[%clk 0:00:27.3]} 42.
Rb7 {[%clk 0:00:19.8]} 42... Bc4+ {[%clk 0:00:23.9]} 43. Kd1 {[%clk 0:00:19.4]}
43... Re8 {[%clk 0:00:21.4]} 44. Rb8 {[%clk 0:00:12.9]} 44... Rxb8 {[%clk
0:00:20.9]} 45. Bxb8 {[%clk 0:00:13.8]} 45... d3 {[%clk 0:00:21.5]} 46. Be5
{[%clk 0:00:04.1]} 46... Bb3+ {[%clk 0:00:21.3]} 47. Ke1 {[%clk 0:00:04.7]}
47... d2+ {[%clk 0:00:21.7]} 48. Kf1 {[%clk 0:00:04.6]} 48... Bc4+ {[%clk
0:00:22.2]} 49. Be2 {[%clk 0:00:04.4]} 49... d1=Q# {[%clk 0:00:22.9]} 0-1

[Event "Late-Titled-Tuesday-Blitz-July-09-2024"]
[Site "Chess.com"]
[Date "2024.07.09"]
[Round "6"]
[White "stregachess"]
[Black "FMalexhdez"]
[Result "0-1"]
[WhiteElo "2077"]
[BlackElo "2275"]
[TimeControl "180+1"]
[EndTime "15:05:23 PDT"]
[Termination "FMalexhdez won by resignation"]

1. d4 {[%clk 0:03:00.9]} 1... Nf6 {[%clk 0:02:41.8]} 2. Nf3 {[%clk 0:03:00.7]}
2... e6 {[%clk 0:02:41.4]} 3. Bf4 {[%clk 0:03:00.7]} 3... b6 {[%clk 0:02:41.6]}
4. e3 {[%clk 0:03:00.6]} 4... Bb7 {[%clk 0:02:42.1]} 5. Be2 {[%clk 0:03:00.3]}
5... d6 {[%clk 0:02:42.7]} 6. O-O {[%clk 0:03:00.1]} 6... Nbd7 {[%clk
0:02:43.4]} 7. h3 {[%clk 0:02:59.8]} 7... Be7 {[%clk 0:02:44]} 8. c4 {[%clk
0:02:59.6]} 8... c5 {[%clk 0:02:42.3]} 9. Nc3 {[%clk 0:02:59.6]} 9... a6 {[%clk
0:02:40.9]} 10. b3 {[%clk 0:02:59.3]} 10... O-O {[%clk 0:02:40.3]} 11. Rc1
{[%clk 0:02:59.4]} 11... Rc8 {[%clk 0:02:39.3]} 12. dxc5 {[%clk 0:02:48.2]}
12... Nxc5 {[%clk 0:02:39]} 13. Qc2 {[%clk 0:02:43.4]} 13... Qc7 {[%clk
0:02:38.2]} 14. Rfd1 {[%clk 0:02:42.6]} 14... Rfd8 {[%clk 0:02:37.4]} 15. Bh2
{[%clk 0:02:41.8]} 15... Nce4 {[%clk 0:02:36.5]} 16. Nxe4 {[%clk 0:02:38.5]}
16... Bxe4 {[%clk 0:02:35.6]} 17. Qb2 {[%clk 0:02:38.7]} 17... Qb7 {[%clk
0:02:34.2]} 18. Ne1 {[%clk 0:02:37.6]} 18... d5 {[%clk 0:02:17.8]} 19. cxd5
{[%clk 0:02:35.6]} 19... Nxd5 {[%clk 0:02:13.8]} 20. Bf3 {[%clk 0:02:16.7]}
20... Bf6 {[%clk 0:02:11.6]} 21. Rxc8 {[%clk 0:01:56.5]} 21... Rxc8 {[%clk
0:02:06]} 22. Be5 {[%clk 0:01:53.1]} 22... Bxe5 {[%clk 0:01:43.4]} 23. Qxe5
{[%clk 0:01:50.9]} 23... Bxf3 {[%clk 0:01:41.5]} 24. Nxf3 {[%clk 0:01:50.5]}
24... h6 {[%clk 0:01:30.2]} 25. Nd4 {[%clk 0:01:40.4]} 25... Qc7 {[%clk
0:01:26.8]} 26. Qxc7 {[%clk 0:01:36.6]} 26... Rxc7 {[%clk 0:01:26.8]} 27. Rd2
{[%clk 0:01:36.8]} 27... Kf8 {[%clk 0:01:23.3]} 28. g3 {[%clk 0:01:36.6]} 28...
Ke7 {[%clk 0:01:22.1]} 29. Kg2 {[%clk 0:01:36.9]} 29... Rc1 {[%clk 0:01:17]} 30.
h4 {[%clk 0:01:36.2]} 30... h5 {[%clk 0:01:16]} 31. Kf3 {[%clk 0:01:27.9]} 31...
g6 {[%clk 0:01:13.6]} 32. e4 {[%clk 0:01:21.9]} 32... Nb4 {[%clk 0:01:12.4]} 33.
a3 {[%clk 0:01:16]} 33... Nc6 {[%clk 0:01:07.3]} 34. Nxc6+ {[%clk 0:01:09.3]}
34... Rxc6 {[%clk 0:01:06.5]} 35. Rd3 {[%clk 0:01:09.5]} 35... e5 {[%clk
0:01:01]} 36. Ke3 {[%clk 0:01:09.4]} 36... Rc2 {[%clk 0:00:59.7]} 37. b4 {[%clk
0:01:02.3]} 37... Ke6 {[%clk 0:00:57.6]} 38. Rb3 {[%clk 0:00:54]} 38... f5
{[%clk 0:00:56.8]} 39. exf5+ {[%clk 0:00:53.2]} 39... gxf5 {[%clk 0:00:56.1]}
40. Kf3 {[%clk 0:00:53.5]} 40... e4+ {[%clk 0:00:55]} 41. Kg2 {[%clk 0:00:52.7]}
41... Kd5 {[%clk 0:00:49.8]} 42. Kf1 {[%clk 0:00:38.5]} 42... Kd4 {[%clk
0:00:47.3]} 43. Ke1 {[%clk 0:00:35.9]} 43... Rc3 {[%clk 0:00:42.6]} 44. Rxc3
{[%clk 0:00:16.1]} 44... Kxc3 {[%clk 0:00:42.3]} 45. Ke2 {[%clk 0:00:17]} 45...
Kb3 {[%clk 0:00:41.6]} 46. Ke3 {[%clk 0:00:16.2]} 46... Kxa3 {[%clk 0:00:41.2]}
47. Kf4 {[%clk 0:00:16.7]} 47... Kxb4 {[%clk 0:00:39]} 48. Kxf5 {[%clk 0:00:17]}
48... a5 {[%clk 0:00:39.4]} 49. g4 {[%clk 0:00:17.4]} 49... a4 {[%clk
0:00:35.8]} 50. gxh5 {[%clk 0:00:14.4]} 50... a3 {[%clk 0:00:36.2]} 51. Kxe4
{[%clk 0:00:14.8]} 51... a2 {[%clk 0:00:36]} 52. h6 {[%clk 0:00:15.7]} 52...
a1=Q {[%clk 0:00:35.8]} 53. Kf4 {[%clk 0:00:16.4]} 53... Qf6+ {[%clk 0:00:34.8]}
54. Kg4 {[%clk 0:00:16]} 54... Qxh6 {[%clk 0:00:34.6]} 55. f4 {[%clk 0:00:16.6]}
55... Kc5 {[%clk 0:00:34.3]} 56. h5 {[%clk 0:00:17.5]} 56... b5 {[%clk
0:00:33.4]} 57. f5 {[%clk 0:00:18.4]} 57... b4 {[%clk 0:00:33.5]} 58. Kh4 {[%clk
0:00:19.2]} 58... b3 {[%clk 0:00:32.9]} 59. f6 {[%clk 0:00:20.1]} 59... Qxf6+
{[%clk 0:00:32.4]} 60. Kg4 {[%clk 0:00:20.3]} 60... b2 {[%clk 0:00:32]} 61. h6
{[%clk 0:00:21.2]} 61... b1=Q {[%clk 0:00:31.8]} 62. h7 {[%clk 0:00:22.1]} 62...
Qbg6+ {[%clk 0:00:30.6]} 0-1